[Event "Late-Titled-Tuesday-Blitz-April-02-2024"]
[Site "Chess.com"]
[Date "2024.04.02"]
[Round "6"]
[White "simaopdias"]
[Black "katharinareinecke"]
[Result "0-1"]
[WhiteElo "2310"]
[BlackElo "2024"]
[TimeControl "180+1"]
[EndTime "15:00:33 PDT"]
[Termination "katharinareinecke won by resignation"]

1. e4 {[%clk 0:02:59.8]} 1... c6 {[%clk 0:02:59.3]} 2. d4 {[%clk 0:02:59.7]}
2... d5 {[%clk 0:02:59.1]} 3. exd5 {[%clk 0:03:00.6]} 3... cxd5 {[%clk
0:02:59.3]} 4. c4 {[%clk 0:03:01.5]} 4... e6 {[%clk 0:02:58]} 5. Nc3 {[%clk
0:03:02.4]} 5... Nf6 {[%clk 0:02:57.3]} 6. Nf3 {[%clk 0:03:03.3]} 6... Be7
{[%clk 0:02:56.3]} 7. cxd5 {[%clk 0:03:03.7]} 7... Nxd5 {[%clk 0:02:54.5]} 8.
Bb5+ {[%clk 0:03:04.6]} 8... Bd7 {[%clk 0:02:53.5]} 9. Bd3 {[%clk 0:03:01.4]}
9... O-O {[%clk 0:02:50.7]} 10. O-O {[%clk 0:03:00.8]} 10... Nxc3 {[%clk
0:02:46.4]} 11. bxc3 {[%clk 0:03:00.7]} 11... Bf6 {[%clk 0:02:46.7]} 12. Qc2
{[%clk 0:02:57.5]} 12... g6 {[%clk 0:02:46]} 13. Re1 {[%clk 0:02:54.8]} 13...
Nc6 {[%clk 0:02:29.3]} 14. Rb1 {[%clk 0:02:54.7]} 14... Qc8 {[%clk 0:02:14.8]}
15. Bh6 {[%clk 0:02:50.6]} 15... Rd8 {[%clk 0:02:03.1]} 16. Rec1 {[%clk
0:02:44.3]} 16... a6 {[%clk 0:02:02.3]} 17. h3 {[%clk 0:02:37.4]} 17... b5
{[%clk 0:02:01.3]} 18. Be4 {[%clk 0:02:36.8]} 18... Rb8 {[%clk 0:01:58.5]} 19.
Qe2 {[%clk 0:02:33.4]} 19... Na5 {[%clk 0:01:54.5]} 20. Nd2 {[%clk 0:02:29.8]}
20... Bc6 {[%clk 0:01:48.6]} 21. Bf4 {[%clk 0:02:29]} 21... Rb7 {[%clk
0:01:38.4]} 22. a4 {[%clk 0:02:15.2]} 22... bxa4 {[%clk 0:01:07.3]} 23. Qxa6
{[%clk 0:02:16.1]} 23... Rxb1 {[%clk 0:01:03.1]} 24. Rxb1 {[%clk 0:02:17]} 24...
Qxa6 {[%clk 0:01:01.7]} 0-1

[Event "Late-Titled-Tuesday-Blitz-April-02-2024"]
[Site "Chess.com"]
[Date "2024.04.02"]
[Round "6"]
[White "PawnEatingZombie"]
[Black "Charodej1"]
[Result "1-0"]
[WhiteElo "2183"]
[BlackElo "2380"]
[TimeControl "180+1"]
[EndTime "15:01:10 PDT"]
[Termination "PawnEatingZombie won by resignation"]

1. e4 {[%clk 0:03:00.9]} 1... c6 {[%clk 0:02:54.6]} 2. Nf3 {[%clk 0:02:59.5]}
2... d5 {[%clk 0:02:54.2]} 3. d3 {[%clk 0:03:00.1]} 3... dxe4 {[%clk 0:02:53.9]}
4. dxe4 {[%clk 0:03:01]} 4... Qxd1+ {[%clk 0:02:54]} 5. Kxd1 {[%clk 0:03:01.5]}
5... Bg4 {[%clk 0:02:54.2]} 6. Be2 {[%clk 0:03:01.7]} 6... Nd7 {[%clk
0:02:52.8]} 7. Ne1 {[%clk 0:03:01.7]} 7... Bxe2+ {[%clk 0:02:52.3]} 8. Kxe2
{[%clk 0:03:02.6]} 8... e6 {[%clk 0:02:51.8]} 9. Be3 {[%clk 0:02:58.7]} 9...
Ngf6 {[%clk 0:02:51.3]} 10. f3 {[%clk 0:02:58.2]} 10... Rg8 {[%clk 0:02:50.3]}
11. h4 {[%clk 0:02:55.7]} 11... Bd6 {[%clk 0:02:44.6]} 12. g4 {[%clk 0:02:53.3]}
12... Ne5 {[%clk 0:02:33.7]} 13. Nd2 {[%clk 0:02:50]} 13... h5 {[%clk
0:02:26.1]} 14. g5 {[%clk 0:02:49.1]} 14... Nfd7 {[%clk 0:02:25.1]} 15. a4
{[%clk 0:02:47.5]} 15... a5 {[%clk 0:02:21.9]} 16. Nd3 {[%clk 0:02:28.9]} 16...
Ke7 {[%clk 0:02:11.2]} 17. b3 {[%clk 0:02:14.9]} 17... Rad8 {[%clk 0:01:53.8]}
18. Nf2 {[%clk 0:02:13.9]} 18... Rge8 {[%clk 0:01:39.7]} 19. f4 {[%clk
0:02:03.9]} 19... Ng6 {[%clk 0:01:37.4]} 20. e5 {[%clk 0:01:56.1]} 20... Bc7
{[%clk 0:01:33.6]} 21. Nfe4 {[%clk 0:01:52.3]} 21... Kf8 {[%clk 0:01:29.2]} 22.
Nc4 {[%clk 0:01:50.8]} 22... Ne7 {[%clk 0:01:27.2]} 23. Ncd6 {[%clk 0:01:48.7]}
23... Bxd6 {[%clk 0:01:23]} 24. Nxd6 {[%clk 0:01:49.6]} 24... Nf5 {[%clk
0:01:23.2]} 25. Nxe8 {[%clk 0:01:49]} 25... Ng3+ {[%clk 0:00:54.5]} 26. Kf3
{[%clk 0:01:48.8]} 26... Nxh1 {[%clk 0:00:54.7]} 27. Nd6 {[%clk 0:01:47.3]} 1-0

[Event "Late-Titled-Tuesday-Blitz-April-02-2024"]
[Site "Chess.com"]
[Date "2024.04.02"]
[Round "6"]
[White "laskakid"]
[Black "kleber2007"]
[Result "1-0"]
[WhiteElo "2309"]
[BlackElo "2472"]
[TimeControl "180+1"]
[EndTime "15:01:37 PDT"]
[Termination "laskakid won by checkmate"]

1. e4 {[%clk 0:03:00.9]} 1... c6 {[%clk 0:02:59.6]} 2. d3 {[%clk 0:03:00.1]}
2... d5 {[%clk 0:02:59.9]} 3. Nd2 {[%clk 0:03:00.3]} 3... e5 {[%clk 0:02:59.4]}
4. Ngf3 {[%clk 0:03:00.2]} 4... Bd6 {[%clk 0:02:59]} 5. d4 {[%clk 0:03:00.4]}
5... exd4 {[%clk 0:02:56.6]} 6. Bd3 {[%clk 0:03:00.5]} 6... dxe4 {[%clk
0:02:49.5]} 7. Nxe4 {[%clk 0:02:59.7]} 7... Nf6 {[%clk 0:02:49.2]} 8. Nxf6+
{[%clk 0:02:56.5]} 8... Qxf6 {[%clk 0:02:48.1]} 9. O-O {[%clk 0:02:55.8]} 9...
O-O {[%clk 0:02:40.5]} 10. Bg5 {[%clk 0:02:55.5]} 10... Qe6 {[%clk 0:02:39]} 11.
Re1 {[%clk 0:02:55.5]} 11... Qd5 {[%clk 0:02:37.6]} 12. c4 {[%clk 0:02:54.6]}
12... dxc3 {[%clk 0:02:33.2]} 13. Qc2 {[%clk 0:02:53.8]} 13... cxb2 {[%clk
0:02:21]} 14. Rad1 {[%clk 0:02:52.5]} 14... Qc5 {[%clk 0:02:08]} 15. Bxh7+
{[%clk 0:01:56.5]} 15... Kh8 {[%clk 0:02:07.3]} 16. Qe4 {[%clk 0:01:53.3]} 16...
g6 {[%clk 0:00:21.8]} 17. Qh4 {[%clk 0:01:39.6]} 17... Kg7 {[%clk 0:00:13.8]}
18. Bf6# {[%clk 0:01:34.7]} 1-0

[Event "Late-Titled-Tuesday-Blitz-April-02-2024"]
[Site "Chess.com"]
[Date "2024.04.02"]
[Round "6"]
[White "AktilekAskarovich"]
[Black "ansko1999"]
[Result "0-1"]
[WhiteElo "2442"]
[BlackElo "2629"]
[TimeControl "180+1"]
[EndTime "15:01:39 PDT"]
[Termination "ansko1999 won on time"]

1. d4 {[%clk 0:02:57.1]} 1... d5 {[%clk 0:02:59.3]} 2. c4 {[%clk 0:02:57.1]}
2... c6 {[%clk 0:02:58.9]} 3. Nf3 {[%clk 0:02:57.1]} 3... Nf6 {[%clk 0:02:58.7]}
4. Nc3 {[%clk 0:02:57.1]} 4... a6 {[%clk 0:02:53.5]} 5. cxd5 {[%clk 0:02:55.2]}
5... cxd5 {[%clk 0:02:53.6]} 6. Bf4 {[%clk 0:02:55.6]} 6... Nc6 {[%clk
0:02:53.1]} 7. e3 {[%clk 0:02:55.7]} 7... Bf5 {[%clk 0:02:51.9]} 8. Qb3 {[%clk
0:02:50.3]} 8... b5 {[%clk 0:02:43]} 9. Ne5 {[%clk 0:02:47.1]} 9... Na5 {[%clk
0:02:38.2]} 10. Qd1 {[%clk 0:02:36.9]} 10... Nc4 {[%clk 0:02:35.4]} 11. b3
{[%clk 0:02:19.4]} 11... Qa5 {[%clk 0:02:27.9]} 12. Rc1 {[%clk 0:02:16.3]} 12...
Nxe5 {[%clk 0:02:14]} 13. dxe5 {[%clk 0:02:17.2]} 13... Ne4 {[%clk 0:02:11.5]}
14. Qxd5 {[%clk 0:02:13.6]} 14... Rc8 {[%clk 0:02:08.8]} 15. Bd3 {[%clk
0:01:12.2]} 15... Nxc3 {[%clk 0:01:44.2]} 0-1

[Event "Late-Titled-Tuesday-Blitz-April-02-2024"]
[Site "Chess.com"]
[Date "2024.04.02"]
[Round "6"]
[White "vova-79"]
[Black "Byniolus"]
[Result "0-1"]
[WhiteElo "2559"]
[BlackElo "2779"]
[TimeControl "180+1"]
[EndTime "15:01:47 PDT"]
[Termination "Byniolus won by resignation"]

1. d4 {[%clk 0:03:00.9]} 1... d6 {[%clk 0:02:59.5]} 2. c4 {[%clk 0:02:59.8]}
2... e5 {[%clk 0:02:59.4]} 3. Nc3 {[%clk 0:02:58.5]} 3... exd4 {[%clk
0:02:59.4]} 4. Qxd4 {[%clk 0:02:59.1]} 4... Nc6 {[%clk 0:03:00.3]} 5. Qd2 {[%clk
0:02:59]} 5... Nf6 {[%clk 0:03:00.5]} 6. g3 {[%clk 0:02:58.7]} 6... Be6 {[%clk
0:02:58]} 7. Nd5 {[%clk 0:02:58]} 7... Ne5 {[%clk 0:02:43.2]} 8. b3 {[%clk
0:02:57]} 8... c6 {[%clk 0:02:42]} 9. Nf4 {[%clk 0:02:50.9]} 9... Ne4 {[%clk
0:02:28.8]} 10. Qe3 {[%clk 0:02:48.6]} 10... d5 {[%clk 0:02:08.2]} 11. Bg2
{[%clk 0:01:54.7]} 11... Bc5 {[%clk 0:01:54.9]} 12. Nxe6 {[%clk 0:01:37.2]}
12... fxe6 {[%clk 0:01:25.4]} 13. Qf4 {[%clk 0:01:31.9]} 13... Bxf2+ {[%clk
0:01:18.9]} 14. Kd1 {[%clk 0:01:30.6]} 14... Bd4 {[%clk 0:01:18.9]} 15. Rb1
{[%clk 0:01:14.2]} 15... Rf8 {[%clk 0:01:07.8]} 16. Qh4 {[%clk 0:00:42.8]} 16...
Qxh4 {[%clk 0:01:06.7]} 17. gxh4 {[%clk 0:00:43.7]} 17... Nf2+ {[%clk
0:01:01.2]} 18. Kc2 {[%clk 0:00:42.7]} 18... Nxh1 {[%clk 0:01:02.1]} 0-1

[Event "Late-Titled-Tuesday-Blitz-April-02-2024"]
[Site "Chess.com"]
[Date "2024.04.02"]
[Round "6"]
[White "Franmu14"]
[Black "Jahonas"]
[Result "1-0"]
[WhiteElo "2672"]
[BlackElo "2502"]
[TimeControl "180+1"]
[EndTime "15:01:51 PDT"]
[Termination "Franmu14 won by resignation"]

1. e4 {[%clk 0:03:00.9]} 1... e6 {[%clk 0:03:00.2]} 2. d4 {[%clk 0:02:58.2]}
2... d5 {[%clk 0:03:00.1]} 3. exd5 {[%clk 0:02:59.1]} 3... exd5 {[%clk
0:02:59.8]} 4. Nc3 {[%clk 0:02:58.7]} 4... Nf6 {[%clk 0:03:00.1]} 5. Bg5 {[%clk
0:02:57.6]} 5... c6 {[%clk 0:03:00.3]} 6. Qd3 {[%clk 0:02:57.4]} 6... Be7 {[%clk
0:03:00.1]} 7. O-O-O {[%clk 0:02:58]} 7... h6 {[%clk 0:03:00]} 8. Bxf6 {[%clk
0:02:57.8]} 8... Bxf6 {[%clk 0:03:00.2]} 9. Kb1 {[%clk 0:02:55.8]} 9... O-O
{[%clk 0:02:59.7]} 10. h4 {[%clk 0:02:55.7]} 10... Bg4 {[%clk 0:02:53.7]} 11. f3
{[%clk 0:02:55.5]} 11... Bh5 {[%clk 0:02:53.8]} 12. g4 {[%clk 0:02:55.6]} 12...
Bg6 {[%clk 0:02:53.7]} 13. Qd2 {[%clk 0:02:56]} 13... Bxh4 {[%clk 0:02:51.2]}
14. Bd3 {[%clk 0:02:55.8]} 14... Bxd3 {[%clk 0:02:49]} 15. Qxd3 {[%clk
0:02:55.4]} 15... Bg5 {[%clk 0:02:43.7]} 16. Nge2 {[%clk 0:02:53.7]} 16... Qd6
{[%clk 0:02:41.2]} 17. Rdf1 {[%clk 0:02:32]} 17... Bf4 {[%clk 0:02:40.7]} 18.
Qf5 {[%clk 0:02:30.2]} 18... Bd2 {[%clk 0:02:33.3]} 19. Qd3 {[%clk 0:01:32]}
19... Bxc3 {[%clk 0:02:27.2]} 20. Qxc3 {[%clk 0:01:26.1]} 20... f6 {[%clk
0:02:10]} 21. f4 {[%clk 0:01:22.6]} 21... Nd7 {[%clk 0:02:08.6]} 22. Ng3 {[%clk
0:01:21.5]} 22... Qe6 {[%clk 0:02:03.1]} 23. Nf5 {[%clk 0:01:18.2]} 23... Rfe8
{[%clk 0:01:55.8]} 24. Qh3 {[%clk 0:01:12.5]} 24... Nf8 {[%clk 0:01:47.5]} 25.
g5 {[%clk 0:01:10.6]} 25... Ng6 {[%clk 0:01:35.9]} 26. gxh6 {[%clk 0:01:08.7]}
26... Nxf4 {[%clk 0:01:35.9]} 27. Qg4 {[%clk 0:00:58.9]} 27... g5 {[%clk
0:01:16.6]} 28. a3 {[%clk 0:00:55.6]} 28... Kh7 {[%clk 0:01:14.5]} 29. Rxf4
{[%clk 0:00:52.4]} 1-0

[Event "Late-Titled-Tuesday-Blitz-April-02-2024"]
[Site "Chess.com"]
[Date "2024.04.02"]
[Round "6"]
[White "maurovargas01"]
[Black "Mariia89"]
[Result "0-1"]
[WhiteElo "1875"]
[BlackElo "2280"]
[TimeControl "180+1"]
[EndTime "15:01:53 PDT"]
[Termination "Mariia89 won by resignation"]

1. e4 {[%clk 0:02:16.3]} 1... c6 {[%clk 0:02:59.9]} 2. Nc3 {[%clk 0:02:15.8]}
2... d5 {[%clk 0:03:00.8]} 3. d3 {[%clk 0:02:16.7]} 3... dxe4 {[%clk 0:03:00.3]}
4. Nxe4 {[%clk 0:02:17.6]} 4... Nf6 {[%clk 0:02:59.9]} 5. Nxf6+ {[%clk 0:02:16]}
5... exf6 {[%clk 0:03:00.8]} 6. Nf3 {[%clk 0:02:13.2]} 6... Bg4 {[%clk 0:03:00]}
7. Be2 {[%clk 0:02:11.4]} 7... Bd6 {[%clk 0:02:58.8]} 8. O-O {[%clk 0:02:11.1]}
8... O-O {[%clk 0:02:59]} 9. Nd2 {[%clk 0:02:08.6]} 9... Bxe2 {[%clk 0:02:55.1]}
10. Qxe2 {[%clk 0:02:08.4]} 10... Re8 {[%clk 0:02:55.7]} 11. Qg4 {[%clk
0:02:01.6]} 11... Nd7 {[%clk 0:02:47.4]} 12. d4 {[%clk 0:01:58.6]} 12... Qc7
{[%clk 0:02:43.5]} 13. Nf3 {[%clk 0:01:57.4]} 13... Nb6 {[%clk 0:02:27.5]} 14.
b3 {[%clk 0:01:54.3]} 14... c5 {[%clk 0:02:24.4]} 15. c4 {[%clk 0:01:43.6]}
15... cxd4 {[%clk 0:02:23.4]} 16. Nxd4 {[%clk 0:01:41.9]} 16... Bxh2+ {[%clk
0:02:17.1]} 17. Kh1 {[%clk 0:01:40.7]} 17... Be5 {[%clk 0:02:16.5]} 18. Nf5
{[%clk 0:01:39.2]} 18... g6 {[%clk 0:02:15.4]} 19. Rb1 {[%clk 0:01:37.7]} 19...
h5 {[%clk 0:02:05.5]} 20. Nh6+ {[%clk 0:01:25.6]} 20... Kg7 {[%clk 0:02:05.4]}
21. Qh3 {[%clk 0:01:10.7]} 21... Bf4 {[%clk 0:01:57.2]} 22. Nf5+ {[%clk
0:00:44.1]} 22... gxf5 {[%clk 0:01:55.9]} 23. Qxh5 {[%clk 0:00:34.5]} 23... Rh8
{[%clk 0:01:52.7]} 24. Qxh8+ {[%clk 0:00:24.1]} 24... Rxh8+ {[%clk 0:01:51.9]}
25. Kg1 {[%clk 0:00:25]} 25... Bxc1 {[%clk 0:01:49.2]} 26. g3 {[%clk 0:00:23.1]}
26... Bf4 {[%clk 0:01:46.4]} 0-1

[Event "Late-Titled-Tuesday-Blitz-April-02-2024"]
[Site "Chess.com"]
[Date "2024.04.02"]
[Round "6"]
[White "KuzubovYuriy"]
[Black "Korchmar_Vasiliy"]
[Result "1-0"]
[WhiteElo "2927"]
[BlackElo "2732"]
[TimeControl "180+1"]
[EndTime "15:02:01 PDT"]
[Termination "KuzubovYuriy won by resignation"]

1. d4 {[%clk 0:03:00.9]} 1... d5 {[%clk 0:03:00]} 2. c4 {[%clk 0:03:01.2]} 2...
c6 {[%clk 0:03:00.5]} 3. Nf3 {[%clk 0:03:01.2]} 3... Nf6 {[%clk 0:03:01]} 4. Nc3
{[%clk 0:03:01.8]} 4... a6 {[%clk 0:03:01.6]} 5. Qc2 {[%clk 0:02:59.1]} 5... Bg4
{[%clk 0:02:54]} 6. e3 {[%clk 0:02:49]} 6... Bxf3 {[%clk 0:02:52.9]} 7. gxf3
{[%clk 0:02:49.1]} 7... g6 {[%clk 0:02:51.8]} 8. Qb3 {[%clk 0:02:37.4]} 8... Ra7
{[%clk 0:02:43.3]} 9. e4 {[%clk 0:02:25.5]} 9... dxe4 {[%clk 0:01:50.4]} 10.
fxe4 {[%clk 0:02:24.6]} 10... Bg7 {[%clk 0:01:51]} 11. e5 {[%clk 0:02:11.2]}
11... Nh5 {[%clk 0:01:36.6]} 12. Be3 {[%clk 0:02:06.8]} 12... b5 {[%clk
0:01:32.5]} 13. Be2 {[%clk 0:01:58.4]} 13... O-O {[%clk 0:01:21]} 14. Bxh5
{[%clk 0:01:50.6]} 14... gxh5 {[%clk 0:01:21.9]} 15. Rg1 {[%clk 0:01:49.3]}
15... Kh8 {[%clk 0:01:22.4]} 16. O-O-O {[%clk 0:01:43.6]} 16... bxc4 {[%clk
0:00:50.6]} 17. Qxc4 {[%clk 0:01:43.5]} 17... Rb7 {[%clk 0:00:50.3]} 18. Ne4
{[%clk 0:01:31.6]} 18... Nd7 {[%clk 0:00:37.7]} 19. Ng5 {[%clk 0:01:23.1]} 19...
Nb6 {[%clk 0:00:24.1]} 20. Nxf7+ {[%clk 0:01:18.1]} 20... Rxf7 {[%clk
0:00:23.6]} 21. Qxf7 {[%clk 0:01:17.8]} 21... e6 {[%clk 0:00:21.2]} 22. Qxb7
{[%clk 0:01:16.4]} 1-0

[Event "Late-Titled-Tuesday-Blitz-April-02-2024"]
[Site "Chess.com"]
[Date "2024.04.02"]
[Round "6"]
[White "sorch29"]
[Black "GoltsevDmitry2000"]
[Result "0-1"]
[WhiteElo "2428"]
[BlackElo "2782"]
[TimeControl "180+1"]
[EndTime "15:02:01 PDT"]
[Termination "GoltsevDmitry2000 won on time"]

1. c4 {[%clk 0:02:54.1]} 1... e5 {[%clk 0:02:59.5]} 2. g3 {[%clk 0:02:53.7]}
2... d5 {[%clk 0:02:57.7]} 3. cxd5 {[%clk 0:02:53.5]} 3... Qxd5 {[%clk
0:02:58.2]} 4. Nf3 {[%clk 0:02:54.2]} 4... Nf6 {[%clk 0:02:56.9]} 5. Nc3 {[%clk
0:02:54.2]} 5... Qe6 {[%clk 0:02:57.2]} 6. Bg2 {[%clk 0:02:53.1]} 6... Nc6
{[%clk 0:02:57.6]} 7. O-O {[%clk 0:02:33.5]} 7... Bc5 {[%clk 0:02:57]} 8. a3
{[%clk 0:02:15.9]} 8... h5 {[%clk 0:02:55.7]} 9. b4 {[%clk 0:02:15.3]} 9... Bb6
{[%clk 0:02:55.3]} 10. Bb2 {[%clk 0:01:59.8]} 10... h4 {[%clk 0:02:54.6]} 11.
Na4 {[%clk 0:01:28.1]} 11... hxg3 {[%clk 0:02:52.1]} 12. hxg3 {[%clk 0:01:27.5]}
12... e4 {[%clk 0:02:48.1]} 13. Nxb6 {[%clk 0:01:17.6]} 13... axb6 {[%clk
0:02:33.3]} 14. Ng5 {[%clk 0:00:20.8]} 14... Qg4 {[%clk 0:02:31.7]} 15. Bxf6
{[%clk 0:00:18.4]} 15... Qh5 {[%clk 0:02:29.3]} 16. f4 {[%clk 0:00:10.6]} 16...
gxf6 {[%clk 0:02:25.2]} 17. Nxe4 {[%clk 0:00:09.7]} 17... Qh2+ {[%clk
0:02:21.2]} 18. Kf2 {[%clk 0:00:09.9]} 18... Bh3 {[%clk 0:02:22.1]} 19. Rg1
{[%clk 0:00:09.5]} 19... O-O-O {[%clk 0:02:21.4]} 20. d3 {[%clk 0:00:04]} 20...
Nd4 {[%clk 0:02:18.8]} 21. Qf1 {[%clk 0:00:03.3]} 21... Bxg2 {[%clk 0:01:56.1]}
22. Qxg2 {[%clk 0:00:02.9]} 22... Qh5 {[%clk 0:01:56.1]} 23. Rae1 {[%clk
0:00:01.7]} 23... Nc2 {[%clk 0:01:53.2]} 24. Rd1 {[%clk 0:00:01.5]} 24... Qd5
{[%clk 0:01:51.9]} 25. Rc1 {[%clk 0:00:01.4]} 25... Qd4+ {[%clk 0:01:52]} 26.
Kf1 {[%clk 0:00:01.3]} 26... Ne3+ {[%clk 0:01:51.7]} 27. Ke1 {[%clk 0:00:01.2]}
27... Nxg2+ {[%clk 0:01:51.5]} 0-1

[Event "Late-Titled-Tuesday-Blitz-April-02-2024"]
[Site "Chess.com"]
[Date "2024.04.02"]
[Round "6"]
[White "PhileKhoob"]
[Black "sillypiggy2024"]
[Result "1-0"]
[WhiteElo "2253"]
[BlackElo "1737"]
[TimeControl "180+1"]
[EndTime "15:02:02 PDT"]
[Termination "PhileKhoob won on time"]

1. Nf3 {[%clk 0:02:58.4]} 1... Nf6 {[%clk 0:02:58]} 2. g3 {[%clk 0:02:54.6]}
2... g6 {[%clk 0:02:56.8]} 3. Bg2 {[%clk 0:02:54.9]} 3... Bg7 {[%clk 0:02:56.2]}
4. O-O {[%clk 0:02:55.3]} 4... O-O {[%clk 0:02:55]} 5. d4 {[%clk 0:02:55.7]}
5... d5 {[%clk 0:02:53.4]} 6. c4 {[%clk 0:02:55.3]} 6... c6 {[%clk 0:02:49.3]}
7. a4 {[%clk 0:02:55.4]} 7... Bf5 {[%clk 0:02:45.7]} 8. Nc3 {[%clk 0:02:54.2]}
8... Nbd7 {[%clk 0:02:43.6]} 9. a5 {[%clk 0:02:52.4]} 9... dxc4 {[%clk
0:02:37.7]} 10. Qa4 {[%clk 0:02:51.3]} 10... Ne4 {[%clk 0:02:11.5]} 11. Qxc4
{[%clk 0:02:43.6]} 11... Ndf6 {[%clk 0:02:01.9]} 12. Nh4 {[%clk 0:02:42.3]}
12... Be6 {[%clk 0:01:36.5]} 13. Qd3 {[%clk 0:02:38.8]} 13... Nxc3 {[%clk
0:01:31.9]} 14. bxc3 {[%clk 0:02:39.7]} 14... Qd7 {[%clk 0:01:18]} 15. Re1
{[%clk 0:02:34.3]} 15... Rfd8 {[%clk 0:01:05.5]} 16. Ba3 {[%clk 0:02:27.7]}
16... Nd5 {[%clk 0:00:42.4]} 17. c4 {[%clk 0:02:14.4]} 17... Nc7 {[%clk
0:00:31.7]} 18. e3 {[%clk 0:02:00.7]} 18... b6 {[%clk 0:00:15]} 19. Nf3 {[%clk
0:01:51.3]} 19... bxa5 {[%clk 0:00:07.6]} 20. Bb2 {[%clk 0:01:46.6]} 20... Rab8
{[%clk 0:00:06.5]} 21. Bc3 {[%clk 0:01:45.7]} 21... Na6 {[%clk 0:00:02]} 22.
Rxa5 {[%clk 0:01:43.9]} 22... Rdc8 {[%clk 0:00:02.2]} 23. Rxa6 {[%clk
0:01:39.1]} 23... Qb7 {[%clk 0:00:01.8]} 24. Rea1 {[%clk 0:01:38.6]} 1-0

[Event "Late-Titled-Tuesday-Blitz-April-02-2024"]
[Site "Chess.com"]
[Date "2024.04.02"]
[Round "6"]
[White "SpeedofLight0"]
[Black "shimastream"]
[Result "1-0"]
[WhiteElo "3070"]
[BlackElo "3014"]
[TimeControl "180+1"]
[EndTime "15:02:03 PDT"]
[Termination "SpeedofLight0 won on time"]

1. d4 {[%clk 0:03:00.9]} 1... Nf6 {[%clk 0:02:54.6]} 2. Nc3 {[%clk 0:03:00.9]}
2... d5 {[%clk 0:02:53.8]} 3. Bf4 {[%clk 0:03:01.1]} 3... a6 {[%clk 0:02:54.3]}
4. e3 {[%clk 0:03:01.4]} 4... Bf5 {[%clk 0:02:52.4]} 5. Bd3 {[%clk 0:03:01.2]}
5... Bxd3 {[%clk 0:02:51.9]} 6. cxd3 {[%clk 0:03:02.1]} 6... e6 {[%clk
0:02:52.2]} 7. Nf3 {[%clk 0:03:02.1]} 7... c5 {[%clk 0:02:51.8]} 8. Qb3 {[%clk
0:02:59.5]} 8... b5 {[%clk 0:02:41.3]} 9. dxc5 {[%clk 0:02:57.8]} 9... Bxc5
{[%clk 0:02:42.2]} 10. Rc1 {[%clk 0:02:57.9]} 10... Nbd7 {[%clk 0:02:41.4]} 11.
O-O {[%clk 0:02:57.1]} 11... O-O {[%clk 0:02:40.8]} 12. Ne2 {[%clk 0:02:51.1]}
12... Rc8 {[%clk 0:02:39]} 13. Rc3 {[%clk 0:02:47.8]} 13... Bb6 {[%clk
0:02:27.7]} 14. Rfc1 {[%clk 0:02:46.3]} 14... Rxc3 {[%clk 0:02:27.8]} 15. Qxc3
{[%clk 0:02:46.2]} 15... h6 {[%clk 0:02:14.5]} 16. Ned4 {[%clk 0:02:45.4]} 16...
Bxd4 {[%clk 0:02:10.6]} 17. Nxd4 {[%clk 0:02:42.3]} 17... Re8 {[%clk 0:02:04.1]}
18. Bd6 {[%clk 0:02:33.6]} 18... Qb6 {[%clk 0:02:02.2]} 19. Qc7 {[%clk
0:02:31.8]} 19... Qxc7 {[%clk 0:01:45.4]} 20. Rxc7 {[%clk 0:02:32.7]} 20... e5
{[%clk 0:01:45.9]} 21. Nf5 {[%clk 0:02:15.2]} 21... Re6 {[%clk 0:01:45.9]} 22.
Bb4 {[%clk 0:01:51.5]} 22... h5 {[%clk 0:01:29.8]} 23. Kf1 {[%clk 0:01:46]}
23... g6 {[%clk 0:01:29.6]} 24. Ne7+ {[%clk 0:01:45.2]} 24... Kg7 {[%clk
0:01:29.4]} 25. Nc6 {[%clk 0:01:41.5]} 25... Nb6 {[%clk 0:01:21.8]} 26. Nd8
{[%clk 0:01:40.2]} 1-0

[Event "Late-Titled-Tuesday-Blitz-April-02-2024"]
[Site "Chess.com"]
[Date "2024.04.02"]
[Round "6"]
[White "chess_sharparchitect"]
[Black "Bala-Afiada"]
[Result "1-0"]
[WhiteElo "2283"]
[BlackElo "1964"]
[TimeControl "180+1"]
[EndTime "15:02:03 PDT"]
[Termination "chess_sharparchitect won by resignation"]

1. c4 {[%clk 0:03:00.9]} 1... Nf6 {[%clk 0:02:01.8]} 2. Nc3 {[%clk 0:02:59.2]}
2... e6 {[%clk 0:02:02.4]} 3. e4 {[%clk 0:02:59.5]} 3... d5 {[%clk 0:01:55.4]}
4. e5 {[%clk 0:02:59.8]} 4... Nfd7 {[%clk 0:01:55.4]} 5. d4 {[%clk 0:02:59]}
5... dxc4 {[%clk 0:01:53.8]} 6. Bxc4 {[%clk 0:02:56.5]} 6... Nb6 {[%clk
0:01:53.9]} 7. Bb3 {[%clk 0:02:53.5]} 7... c5 {[%clk 0:01:53.1]} 8. Nf3 {[%clk
0:02:43.9]} 8... cxd4 {[%clk 0:01:52.8]} 9. Nxd4 {[%clk 0:02:43.4]} 9... Nc6
{[%clk 0:01:50.5]} 10. Nxc6 {[%clk 0:02:39.3]} 10... Qxd1+ {[%clk 0:01:46.9]}
11. Bxd1 {[%clk 0:02:39.2]} 11... bxc6 {[%clk 0:01:47.8]} 12. Bf3 {[%clk
0:02:34.9]} 12... Bd7 {[%clk 0:01:41.6]} 13. O-O {[%clk 0:02:27.1]} 13... Nd5
{[%clk 0:01:40.8]} 14. Bd2 {[%clk 0:02:23.6]} 14... Rb8 {[%clk 0:01:40.6]} 15.
b3 {[%clk 0:02:22.7]} 15... Bb4 {[%clk 0:01:30.5]} 16. Rac1 {[%clk 0:02:17.6]}
16... O-O {[%clk 0:01:27.6]} 17. Rfd1 {[%clk 0:02:02.9]} 17... Ba3 {[%clk
0:01:26.3]} 18. Rb1 {[%clk 0:01:57.4]} 18... Nb4 {[%clk 0:01:26.1]} 19. Ne4
{[%clk 0:01:42]} 19... Nc2 {[%clk 0:01:18.2]} 20. Bc3 {[%clk 0:01:33.8]} 20...
Rfd8 {[%clk 0:01:01.8]} 21. Ba5 {[%clk 0:01:28]} 21... Bb4 {[%clk 0:00:42]} 22.
Bxd8 {[%clk 0:01:25.6]} 22... Rxd8 {[%clk 0:00:42.9]} 23. Rbc1 {[%clk
0:01:19.7]} 23... Na3 {[%clk 0:00:40]} 24. Nc5 {[%clk 0:01:16.1]} 24... Bxc5
{[%clk 0:00:38.2]} 25. Rxc5 {[%clk 0:01:16.1]} 25... Nb5 {[%clk 0:00:31.6]} 26.
Bxc6 {[%clk 0:01:15.8]} 1-0